Cogmind - Beta 11 @@@ ROGUE MODE // 2022.03.30 @ 14:14:47 Player: Sn@43 Result: Destroyed by as-23120 with Assembled Blade Performance ------------- Evolutions (0) 0 Regions Visited (4) 800 Robots Destroyed (21) 105 Value Destroyed (345) 345 Prototype IDs (0) 0 Alien Tech Used (0) 0 Bonus (50) 50 TOTAL SCORE: 1300 Bonus ------- Follower Combat Kills 67 Friendly Fire -17 Cogmind --------- Core Integrity 0/250 Matter 167/300 Energy 125/125 System Corruption 3% Temperature Cool (20) Movement Rolling (105) Ox1 Location -9/Mines Parts ------- > --- POWER (1) -------- Light Ion Engine > --- PROPULSION (2) --- Armored Wheel Armored Wheel > --- UTILITY (2) ------ High-capacity Storage Unit Visual Processing Unit > --- WEAPON (2) ------- Small Laser Light Assault Rifle > --- INVENTORY (20) --- Armored Wheel Small Storage Unit High-capacity Storage Unit High-capacity Matter Pod (152) Splice Drone Bay Datajack Peak State ------------ > --- POWER ------------ Ion Engine > --- PROPULSION ------- Armored Wheel Armored Wheel > --- UTILITY ---------- Large Storage Unit Visual Processing Unit > --- WEAPON ----------- Light Assault Rifle Makeshift Shrapnel Gun > --- INVENTORY -------- Light Ion Engine Armored Wheel Armored Wheel Small Storage Unit Large Storage Unit High-capacity Matter Pod Splice Drone Bay Assault Rifle Datajack Plasma Cutter [Rating: 14] Favorites ----------- Power Ion Engine Engine Ion Engine Propulsion Armored Wheel Wheel Armored Wheel Utility Visual Processing Unit Device Tractor Beam Storage Large Storage Unit Processor Visual Processing Unit Weapon Light Assault Rifle Energy Gun Small Laser Ballistic Gun Light Assault Rifle Special Weapon Plasma Cutter Build | -11 -10 -10 -10 -9 ------- Run | Scr Mat Min Exi Min Slots Evolved . | . . . . . Power . | . . . . . Propulsion . | . . . . . Utility . | . . . . . Weapon . | . . . . . Parts Attached 28 | 8 9 4 1 6 Power 4 | 1 2 . . 1 Engine 4 | 1 2 . . 1 Core . | . . . . . Reactor . | . . . . . Propulsion 6 | 2 3 . . 1 Treads . | . . . . . Leg . | . . . . . Wheel 6 | 2 3 . . 1 Hover . | . . . . . Flight . | . . . . . Utility 5 | 2 2 . 1 . Device 1 | 1 . . . . Storage 3 | 1 1 . 1 . Processor 1 | . 1 . . . Hackware . | . . . . . Protection . | . . . . . Artifact . | . . . . . Weapon 13 | 3 2 4 . 4 Energy Gun 3 | 1 . 1 . 1 Energy Cannon . | . . . . . Ballistic Gun 9 | 2 2 3 . 2 Ballistic Cannon . | . . . . . Launcher . | . . . . . Special Weapon 1 | . . . . 1 Impact Weapon . | . . . . . Slashing Weapon . | . . . . . Piercing Weapon . | . . . . . Special Melee Weapon . | . . . . . Unidentified Prototypes . | . . . . . Parts Lost 8 | . 3 1 . 4 Power 2 | . 1 . . 1 Propulsion 1 | . . . . 1 Utility . | . . . . . Weapon 5 | . 2 1 . 2 Highest Loss Streak 2 | . 2 1 . 2 To Critical Strikes . | . . . . . Average Slot Usage (%) 99 | . 100 100 100 91 Engine 13 | . 14 14 14 12 Wheel 27 | . 28 28 28 26 Device 1 | . 3 . . . Storage 14 | . 14 14 14 14 Processor 12 | . 10 14 14 14 Energy Gun 8 | . 9 3 14 . Ballistic Gun 19 | . 18 24 14 24 Naked Turns . | . . . . . Heaviest Build 47 | 15 29 28 47 46 Greatest Support 26 | 26 26 24 24 24 Greatest Overweight (x) 3 | . 1 1 1 3 Average Overweight (x) . | . . 1 1 1 Largest Inventory Capacity 20 | 8 15 15 20 20 Average Capacity 13 | 7 11 15 15 20 Most Carried 12 | 4 9 10 12 10 Average Carried 8 | 2 7 9 10 8 Final Capacity 20 | 8 15 15 20 20 Final Carried 10 | 4 8 10 10 6 Class Distribution -------------------- 100% | Mutant Dominant Class ---------------- Mutant | -10/Materials Mutant | -10/Mines Mutant | -10/Exiles Mutant | -9/Mines Resources | -11 -10 -10 -10 -9 ----------- Run | Scr Mat Min Exi Min Matter Collected 743 | 275 324 119 . 25 Remotely 182 | 143 39 . . . Salvage Created 476 | 63 346 42 . 25 Parts 45 | 3 30 9 . 3 Haulers Intercepted . | . . . . . Recyclers Shooed . | . . . . . Parts Field Recycled . | . . . . . Retrieved Matter . | . . . . . Parts Self-Destructed . | . . . . . Prevented . | . . . . . Kills | -11 -10 -10 -10 -9 ------- Run | Scr Mat Min Exi Min Combat Hostiles Destroyed 14 | . 8 2 . 4 Guns 13 | . 7 2 . 4 AOE 1 | . 1 . . . Classes Destroyed 7 | 1 5 1 . . Builder 1 | . 1 . . . Tunneler 1 | . . 1 . . Recycler 2 | 1 1 . . . Operator 1 | . 1 . . . Watcher 2 | . 2 . . . Swarmer 9 | . 3 2 . 4 Grunt 5 | . 5 . . . Best Kill Streak 4 | 1 3 2 . 4 Combat Bots Only 4 | . 3 2 . 4 Max Kills in Single Turn 2 | 1 2 1 . 1 Gunslinging . | . . . . . Exploded 1 | . 1 . . . Melee . | . . . . . Uniques/NPCs Destroyed . | . . . . . Combat | -11 -10 -10 -10 -9 -------- Run | Scr Mat Min Exi Min Damage Taken 1176 | . 655 101 . 420 Core 263 | . 138 11 . 114 Absorbed by Shields . | . . . . . Core Remaining (%) 100 | 100 . . . . Volleys Fired 69 | 2 42 7 . 18 Largest 2 | 2 2 2 . 2 Hottest 70 | 40 70 60 . 60 Shots Fired 117 | 4 83 11 . 19 Gun 115 | 4 83 11 . 17 Cannon . | . . . . . Launcher . | . . . . . Special 2 | . . . . 2 Kinetic 87 | 4 57 10 . 16 Thermal 30 | . 26 1 . 3 Explosive . | . . . . . Electromagnetic . | . . . . . Robot Hit Streak 12 | 1 12 6 . 3 Robot Miss Streak 12 | 2 4 3 . 12 Penetration Max . | . . . . . Secondary Targets . | . . . . . Shots Hit Robots 73 | 1 55 8 . 9 Core Hits 32 | 1 21 6 . 4 Critical Kills . | . . . . . Critical Parts Destroyed . | . . . . . Critical Strikes 1 | . 1 . . . Burn 1 | . 1 . . . Melee Attacks . | . . . . . Impact . | . . . . . Slashing . | . . . . . Piercing . | . . . . . Sneak Attacks . | . . . . . Combat Hostiles . | . . . . . Follow-up Attacks . | . . . . . Damage Inflicted 996 | 15 717 140 . 124 Guns 986 | 15 717 140 . 114 Cannons . | . . . . . Explosions . | . . . . . Melee . | . . . . . Ramming . | . . . . . Kinetic 734 | 15 477 128 . 114 Thermal 262 | . 240 12 . 10 Explosive . | . . . . . Electromagnetic . | . . . . . Impact . | . . . . . Slashing . | . . . . . Piercing . | . . . . . Highest Corruption 3 | . 3 3 3 3 Average Corruption 2 | . 2 3 3 3 Corruption Purged . | . . . . . Corruption Blocked . | . . . . . Effects 31 | . 3 15 12 1 Message Errors 6 | . 1 3 2 . Matter Fused 6 | . . 3 3 . Heat Flow Errors 9 | . 1 5 3 . Energy Discharges 1 | . . . 1 . Data Loss (minor) 8 | . 1 3 3 1 Data Loss (major) 1 | . . 1 . . Overload Shots . | . . . . . Overflow Damage . | . . . . . Projectiles . | . . . . . Explosions . | . . . . . Melee . | . . . . . Knockbacks . | . . . . . Impact . | . . . . . Kinetic . | . . . . . Secondary . | . . . . . Self-Inflicted Damage . | . . . . . Shots . | . . . . . Rammed . | . . . . . Targets Rammed . | . . . . . Kicked . | . . . . . Crushed . | . . . . . Highest Temperature 277 | . 123 236 277 20 Average Temperature 74 | . 43 94 138 15 Received Heat Transfer 252 | . 204 48 . . Siege Activations . | . . . . . Robots Corrupted . | . . . . . Combat Hostiles . | . . . . . Parts Fried . | . . . . . Impact Corruptions . | . . . . . Robots Melted . | . . . . . Combat Hostiles . | . . . . . Parts Melted 2 | . 2 . . . Heat Transferred 839 | . 777 25 . 37 Parts Sabotaged . | . . . . . Parts Stolen . | . . . . . Parts Stripped . | . . . . . Power Chain Reactions . | . . . . . Missiles Intercepted . | . . . . . Alert | -11 -10 -10 -10 -9 ------- Run | Scr Mat Min Exi Min Peak Influence 144 | 5 114 144 . 70 Initial 3 | . 3 . . . Average 46 | 1 46 47 . 53 Maximum Alert Level . | . . . . . Low Security (%) 100 | 100 100 100 . 100 Level 1 . | . . . . . Level 2 . | . . . . . Level 3 . | . . . . . Level 4 . | . . . . . Level 5 . | . . . . . High Security . | . . . . . Max Security . | . . . . . Squads Dispatched 2 | . 2 . . . Investigation . | . . . . . Extermination . | . . . . . Reinforcement 2 | . 2 . . . Assault . | . . . . . Garrison . | . . . . . Intercept . | . . . . . Searches Triggered . | . . . . . Construction Impeded . | . . . . . Haulers Reinforced . | . . . . . Active Scanning Responses . | . . . . . Cargo Convoy Interrupts . | . . . . . Stealth | -11 -10 -10 -10 -9 --------- Run | Scr Mat Min Exi Min Distress Signals 2 | . 2 . . . Communications Jammed . | . . . . . Distress Signals . | . . . . . Times Spotted 26 | . 16 5 . 5 Peak Tracking Total 4 | . 3 3 . 4 Tactical Retreats 1 | . . 1 . . Traps | -11 -10 -10 -10 -9 ------- Run | Scr Mat Min Exi Min Traps Triggered 2 | . 2 . . . Indirectly . | . . . . . Trap Hack Attempts . | . . . . . Triggered . | . . . . . Disarmed . | . . . . . Reprogrammed . | . . . . . Reused . | . . . . . Traps Extracted . | . . . . . Installed . | . . . . . Triggered . | . . . . . Machines | -11 -10 -10 -10 -9 ---------- Run | Scr Mat Min Exi Min Machines Disabled . | . . . . . Max in Single Turn . | . . . . . Machines Sabotaged . | . . . . . Garrisons Compromised . | . . . . . Overloaded Fab Kills . | . . . . . Hacking | -11 -10 -10 -10 -9 --------- Run | Scr Mat Min Exi Min Machines Accessed 7 | . 6 1 . . Terminals 6 | . 6 . . . Fabricators . | . . . . . Repair Stations . | . . . . . Recycling Units . | . . . . . Scanalyzers . | . . . . . Garrison Access . | . . . . . Total Hacks 19 | . 18 1 . . Successful 10 | . 9 1 . . Failed 8 | . 8 . . . Catastrophic 2 | . 2 . . . Database Lockouts 1 | . 1 . . . Manual 17 | . 17 . . . Terminals 18 | . 18 . . . Fabricators . | . . . . . Repair Stations . | . . . . . Recycling Units . | . . . . . Scanalyzers . | . . . . . Garrison Access . | . . . . . Terminal Hacks 4 | . 3 1 . . Robot Analysis 1 | . 1 . . . Open Door 1 | . . 1 . . Alert Level 1 | . 1 . . . Unreport Threat 1 | . 1 . . . Fabricator Hacks . | . . . . . Repair Station Hacks . | . . . . . Recycling Unit Hacks . | . . . . . Scanalyzer . | . . . . . Garrison Access Hacks . | . . . . . Unauthorized Hacks 6 | . 6 . . . Terminals 6 | . 6 . . . Track 1 | . 1 . . . Botnet 5 | . 5 . . . Fabricators . | . . . . . Repair Stations . | . . . . . Recycling Units . | . . . . . Scanalyzers . | . . . . . Garrison Access . | . . . . . Data Cores Recovered . | . . . . . Used . | . . . . . Hacking Detections 6 | . 6 . . . Full Trace Events . | . . . . . Feedback Events . | . . . . . Feedback Blocked . | . . . . . Robot Schematics Acquired . | . . . . . Robots Built . | . . . . . Authchips . | . . . . . Time . | . . . . . Total Robot Build Rating . | . . . . . Part Schematics Acquired . | . . . . . Parts Built . | . . . . . Authchips . | . . . . . Time . | . . . . . Total Part Build Rating . | . . . . . Parts Repaired . | . . . . . Time . | . . . . . Parts Recycled . | . . . . . Recycled Matter . | . . . . . Retrieved Matter . | . . . . . Retrieved Components . | . . . . . Parts Scanalyzed . | . . . . . Part Schematics Acquired . | . . . . . Parts Damaged . | . . . . . Bothacking | -11 -10 -10 -10 -9 ------------ Run | Scr Mat Min Exi Min Used RIF Installer . | . . . . . Robots Hacked . | . . . . . Non-combat . | . . . . . Combat . | . . . . . Robot Hacks Applied . | . . . . . Relay Couplers Released . | . . . . . Fabnet Peak Effective % . | . . . . . Robots Rewired . | . . . . . Allies Hacked . | . . . . . Hacks Repelled . | . . . . . Allies | -11 -10 -10 -10 -9 -------- Run | Scr Mat Min Exi Min Total Allies 2 | . . 2 . . Largest Group 2 | . . 2 2 . Highest-Rated Group 39 | . . 39 39 . Highest-Rated Ally 31 | . . 31 31 . Total Orders . | . . . . . Ally Attacks 5 | . . 5 . . Total Damage 82 | . . 82 . . Kills 3 | . . 3 . . Allies Corrupted . | . . . . . Allies Melted . | . . . . . Intel | -11 -10 -10 -10 -9 ------- Run | Scr Mat Min Exi Min Robot Analysis Total 1 | . 1 . . . Derelict Logs Recovered 1 | . . 1 . . Drone Launches . | . . . . . Drone Recoveries . | . . . . . Exploration | -11 -10 -10 -10 -9 ------------- Run | Scr Mat Min Exi Min Turns Passed 2803 | 60 1217 863 590 73 Spaces Moved 2212 | 44 896 700 546 26 Core 3 | 3 . . . . Treads . | . . . . . Legs . | . . . . . Wheels 2209 | 41 896 700 546 26 Hover . | . . . . . Flight . | . . . . . Fastest Speed 50 | 50 80 105 105 105 Average Speed 101 | 87 97 105 105 106 Slowest Speed 135 | 100 105 105 105 135 Overloaded Moves . | . . . . . Propulsion Burnouts . | . . . . . Robots Hopped . | . . . . . Cave-ins Triggered . | . . . . . Exploration Rate (%) 59 | 4 100 99 83 10 Regions Visited 4 Branch Regions 3 Pre-discovered Areas . | . . . . . Known Exits Taken . | . . . . . Unknown Exits Taken 4 | 1 1 1 1 . Scrap Searched 2 | . . 2 . . Spaces Dug . | . . . . . Terrain Destroyed . | . . . . . Melee . | . . . . . Projectile . | . . . . . AOE . | . . . . . Terrain Rammed . | . . . . . Walls Destroyed . | . . . . . Machines Disabled . | . . . . . Actions | -11 -10 -10 -10 -9 --------- Run | Scr Mat Min Exi Min Total 2647 | 57 1160 816 563 51 Wait 315 | . 198 103 14 . Move 2208 | 43 895 699 545 26 Hop . | . . . . . Pick Up 15 | 4 8 2 1 . Fast Attach 9 | 7 1 1 . . Attach 8 | . 3 1 . 4 Detach 2 | . 1 1 . . Swap 11 | 1 5 2 1 2 Drop 10 | . 7 . 2 1 Fire 69 | 2 42 7 . 18 Melee . | . . . . . Ram . | . . . . . Kick . | . . . . . Crush . | . . . . . Escape Stasis . | . . . . . Rewire . | . . . . . Trap . | . . . . . Miscellaneous . | . . . . . Route ------- -11/Scrapyard -10/Materials (discovered 4 exits: [*Mat x3] / *Min) -10/Mines (discovered 3 exits: [*Mat x2] / *Exi) -10/Exiles (discovered 2 exits: [*Min x2]) -9/Mines History --------- Turn | Location | Event 18 | -11/Scrapyard | Discovered new exit (range 16) 61 | -11/Scrapyard | Entered Materials 193 | -10/Materials | Discovered new exit (range 8) 318 | -10/Materials | Build established: Mutant 586 | -10/Materials | Discovered new exit (range 8) 792 | -10/Materials | Discovered new exit (range 17) 865 | -10/Materials | Core integrity fell below 50% 916 | -10/Materials | Discovered new exit (range 5) 1181 | -10/Materials | Central database locked down 1278 | -10/Materials | Entered Mines 1284 | -10/Mines | Found the Drone Emporium 1289 | -10/Mines | Found Prototype Device 1442 | -10/Mines | A weapon hastily lodged in a ceiling crevice suddenly fell to the ground 1480 | -10/Mines | Deemed a non-threat by the Exiles lab entrance 1482 | -10/Mines | Discovered new exit (range 5) 1693 | -10/Mines | Discovered new exit (range 16) 1716 | -10/Mines | Discovered new exit (range 4) 2141 | -10/Mines | Entered Exiles 2141 | -10/Exiles | Accompanied by 2 allies 2159 | -10/Exiles | Discovered new exit (range 17) 2171 | -10/Exiles | Led the pair of lost Derelicts to a safe place 2196 | -10/Exiles | Met 8R-AWN 2230 | -10/Exiles | Met EX-HEX 2267 | -10/Exiles | Met EX-DEC 2302 | -10/Exiles | Visited The Gauntlet 2567 | -10/Exiles | Met EX-BIN 2718 | -10/Exiles | Discovered new exit (range 15) 2731 | -10/Exiles | Entered Mines 2787 | -9/Mines | Excavation squad dispatched 2787 | -9/Mines | A large section of the Mines collapsed 2795 | -9/Mines | Core integrity fell below 20% 2804 | -9/Mines | Destroyed by as-23120 with Assembled Blade Last Messages --------------- 02699_ Dropped Lrg. Storage Unit. 02718_ EXIT=FOUND LOCATION=UNKNOWN GOAL=ESCAPE 02739_ S-10 Pest destroyed. 02740_ Arm. Wheel destroyed. 02743_ S-10 Pest destroyed. 02746_ Ion Engine destroyed. 02754_ S-10 Pest destroyed. 02759_ Acquired 9 matter. 02760_ Acquired 3 matter. 02761_ Acquired 9 matter. 02763_ Acquired 4 matter. 02767_ Dropped Lgt. Assault Rifle. 02774_ System corrupted: Component data lost. 02785_ K-01 Serf collects debris. 02787_ ALERT: Suspicious cave-in, suspected derelict activity in mines. Dispatching escorted excavation squad. 02787_ Mak. Shrapnel Gun destroyed. 02799_ Plasma Cutter destroyed. Map ----- +----------------------------------------------------+ | ???????????????????????????????????????????? | | ???????????????????????????????????????????? | | ???????????????????????????????????????????? | | ???????????????????????????????????????????? | | ???????????????????????????????????????????? | | ???????????????????????????????????????????? | | ???????????????????????????????????????????? | | ???????????????????????????????????????????? | | ???????????????????????????????????????????? | | ???????????????????????????????????????????? | | ???????????????????????????????????????????? | | ???????????????????????????????????????????? | | ???????????????????????????????????????????? | | ???????????????????????????????????????????? | | ???????????????????????????????????????????? | | ?????#####?????????????????????????????????? | | ???### ##????????????????????????????????? | | ??## ##???????????????????????????????? | | ??# #???????????????????????????????? | | ??# #????????###????????????????????? | | ??## = #??????## ##???????????????????? | | ???## ##?????## ###??? #?????????????? | | ????# ##??##### ;# ## #?????????????? | | ????#[= ##?## ## #;# #??????????????? | | ????## ### #a#;# #???????????????? | | ????## #@# #????????????????? | | ???## # ## ##### #????????????????? | | ???# ## ####### ???????????? | | ???# ### #?????## ##### ????????? | | ???## ##?# #???????######???????? #???????? | | ????####??# #??????????????????????????????? | | ??????????# #??????????????????????????????? | | ?????????? #??????????????????????????????? | | ??????????###??????????????????????????????? | | ???????????????????????????????????????????? | | ???????????????????????????????????????????? | | ???????????????????????????????????????????? | | ???????????????????????????????????????????? | | ???????????????????????????????????????????? | | ???????????????????????????????????????????? | | ???????????????????????????????????????????? | | ???????????????????????????????????????????? | | ???????????????????????????????????????????? | | ???????????????????????????????????????????? | | ???????????????????????????????????????????? | | ???????????????????????????????????????????? | | ???????????????????????????????????????????? | | ???????????????????????????????????????????? | | ???????????????????????????????????????????? | | ???????????????????????????????????????????? | +----------------------------------------------------+ Best States ------------- Heat Dissipation 25 Energy Generation 10 Energy Capacity 250 Matter Stores 300 Matter Capacity 300 Sight Range 18 Terrain Scan Density 10 Evasion (%) 44 Item Schematics ----------------- None Robot Schematics ------------------ None Fabricated ------------ Nothing Alien Tech Used ----------------- None Achievements -------------- None Challenges ------------ None Game ------ Seed ThermicPrecisionFrame Manual? 0 Play Time 00:27:51 Cumulative 46.8 hours Start 2022.03.30 @ 13:42:03 End 2022.03.30 @ 14:14:47 Sessions 1 Manual Loads 0 Difficulty Rogue Special Mode None Game No. 79 Rogue 51 Adventurer 28 Explorer 0 Win Type - Total 0 Types 0/0/0/0/0/0/0/0/0 Lore% 21 Gallery% 27 Achievement% 30 Wizard Run 0 Options --------- ASCII 0 Keyboard 0 Movement Mouse Keybinds 0 Fullscreen 1 Font 24/Terminus Map View 84x54 Tactical HUD 1 Map Filters NONE Filters NONE Steam 1 RUN: a1aad9b3-b11d-42f0-acfe-da346a224649